bitfinex-derivatives/quotes_BNBF0:USTF0_20250315
["timestamp","ask_amount","ask_price","bid_price","bid_amount"]
[1742046163442,0.28062346,600.51,598.9,7.31]
[1742046163642,0.28062346,600.5,598.9,7.31]
[1742046163844,0.28062346,600.49,598.9,7.31]
[1742046164144,0.28062346,600.48,598.9,7.31]
[1742046164438,0.28062346,600.47,598.9,7.31]
[1742046164639,0.28062346,600.46,598.9,7.31]
[1742046164837,0.28062346,600.55,598.9,7.31]
[1742046165041,0.28062346,600.54,598.9,7.31]
[1742046165240,0.28062346,600.55,598.9,7.31]
[1742046165444,0.28062346,600.54,598.9,7.31]
[1742046165743,0.28062346,600.53,598.9,7.31]
[1742046165938,0.28062346,600.52,598.9,7.31]
[1742046166137,0.28065415,600.51,598.9,7.31]
[1742046166344,0.28065415,600.5,598.9,7.31]
[1742046166643,0.28065415,600.49,598.9,7.31]
[1742046166843,0.29036538,600.53,598.9,7.31]
[1742046166844,0.28065415,600.48,598.9,7.31]
[1742046167036,0.28065415,600.47,598.9,7.31]
[1742046167239,0.28065415,600.46,598.9,7.31]
[1742046167546,0.28065415,600.45,598.9,7.31]
[1742046167845,0.28065415,600.44,598.9,7.31]
[1742046168245,0.28065415,600.43,598.9,7.31]
[1742046168439,0.28065415,600.42,598.9,7.31]
[1742046168645,0.28065415,600.41,598.9,7.31]
[1742046168849,0.28065415,600.4,598.9,7.31]
[1742046169148,2.54800655,600.47,598.9,7.31]
[1742046169149,0.33312235,600.38,598.9,7.31]
[1742046169444,0.28065415,600.37,598.9,7.31]
[1742046169644,0.333139,600.35,598.9,7.31]
[1742046169844,0.28065415,600.34,598.9,7.31]
[1742046170147,2.54800655,600.2,598.9,7.31]
[1742046170445,0.33323336,600.18,598.9,7.31]
[1742046170642,0.28065415,600.17,598.9,7.31]
[1742046170839,0.33325002,600.15,598.9,7.31]
[1742046171039,0.28065415,600.14,598.9,7.31]
[1742046171244,0.33326667,600.12,598.9,7.31]
[1742046171444,0.28065415,600.11,598.9,7.31]
[1742046171644,0.33328334,600.09,598.9,7.31]
[1742046171845,0.28066472,600.08,598.9,7.31]
[1742046172044,0.3333,600.06,598.9,7.31]
[1742046172244,0.28066472,600.05,598.9,7.31]
[1742046172439,0.33331666,600.03,598.9,7.31]
[1742046172641,0.28066472,600.02,598.9,7.31]
[1742046173045,0.33333333,600.0,598.9,7.31]
[1742046173245,0.28066472,599.99,598.9,7.31]
[1742046176041,0.33334444,599.98,598.9,7.31]
[1742046176247,0.28066472,599.97,598.9,7.31]
[1742046176447,0.33335555,599.96,598.9,7.31]
[1742046176647,0.28066472,599.95,598.9,7.31]
[1742046176844,0.33336667,599.94,598.9,7.31]
[1742046177449,0.28062934,599.93,598.9,7.31]
[1742046177646,0.33337778,599.92,598.9,7.31]
[1742046177847,0.28062934,599.91,598.9,7.31]
[1742046179048,0.33337778,599.92,598.9,7.31]
[1742046179248,0.28060194,599.91,598.9,7.31]
[1742046184251,0.33337778,599.92,598.9,7.31]
[1742046184451,0.28059928,599.91,598.9,7.31]
[1742046186257,0.28059291,599.9,598.9,7.31]
[1742046186556,0.28059291,599.89,598.9,7.31]
[1742046186756,0.28059291,599.91,598.9,7.31]
[1742046187758,0.33337778,599.92,598.9,7.31]
[1742046187958,0.28059991,599.91,598.9,7.31]
[1742046188463,0.33337778,599.92,598.9,7.31]
[1742046188759,0.28059991,599.91,598.9,7.31]
[1742046190663,0.28059934,599.9,598.9,7.31]
[1742046190853,0.28059934,599.91,598.9,7.31]
[1742046191053,0.28059934,599.9,598.9,7.31]
[1742046191260,0.28059934,599.91,598.9,7.31]
[1742046191662,0.33337778,599.92,598.9,7.31]
[1742046191962,0.2806021,599.91,598.9,7.31]
[1742046192367,0.28060969,599.9,598.9,7.31]
[1742046192662,0.28060969,599.91,598.9,7.31]
[1742046192960,0.28060969,599.9,598.9,7.31]
[1742046193160,0.28060969,599.91,598.9,7.31]
[1742046193355,0.33337778,599.92,598.9,7.31]
[1742046197568,0.28055381,599.91,598.9,7.31]
[1742046202870,0.33337778,599.92,598.9,7.31]
[1742046203871,0.33337778,599.92,598.91,0.30650334]
[1742046204471,0.33337778,599.92,598.72,0.30650334]
[1742046204768,0.33337778,599.92,598.73,0.64054372]
[1742046204974,0.33337778,599.92,598.74,0.64053814]
[1742046205174,0.33337778,599.92,598.75,0.64053256]
[1742046205374,0.33337778,599.92,598.76,0.64052698]
[1742046205675,0.28049076,599.91,598.77,0.64052141]
[1742046205974,0.28049076,599.91,598.78,0.64051583]
[1742046206174,0.28049076,599.91,598.79,0.64051025]
[1742046206474,0.33337778,599.92,598.8,0.64050467]
[1742046206673,0.33337778,599.92,598.81,0.64049909]
[1742046206869,0.33337778,599.92,598.82,0.30648982]
[1742046207073,0.33337778,599.92,598.81,1.67499575]
[1742046207374,0.33337778,599.92,598.83,0.189]
[1742046207774,0.33337778,599.92,598.84,2.687]
[1742046210773,0.33337778,599.92,598.85,0.33397344]
[1742046213886,0.33337778,599.92,598.86,0.30649179]
[1742046214481,0.33337778,599.92,598.87,0.33396229]
[1742046214686,0.33337778,599.92,598.88,0.30648756]
[1742046216486,0.33337778,599.92,598.89,0.33395114]
[1742046216682,0.33337778,599.92,598.9,0.30648756]
[1742046216886,0.33337778,599.92,598.91,0.33393999]
[1742046217088,0.33337778,599.92,598.92,0.30648756]
[1742046217282,0.33337778,599.92,598.92,0.64042197]
[1742046217481,0.33337778,599.92,598.92,0.33393441]
[1742046219893,4.43375563,601.05,598.92,0.33393441]
[1742046220092,0.33280638,600.95,598.92,0.32968201]
[1742046220493,0.28041568,600.94,598.92,0.32968201]
[1742046220690,0.33286731,600.84,598.92,0.32968201]
[1742046220890,0.28041568,600.83,598.92,0.32968201]
[1742046221095,0.33288394,600.81,598.92,0.32968201]
[1742046221295,0.28041568,600.8,598.92,0.32968201]
[1742046221596,0.33290056,600.78,598.92,0.32968201]
[1742046221797,0.28041568,600.77,598.92,0.32968201]
[1742046221997,0.33291718,600.75,598.92,0.32968201]
[1742046222298,0.28041568,600.74,598.92,0.32968201]
[1742046222594,0.33293381,600.72,598.92,0.32968201]
[1742046222794,0.28041568,600.71,598.92,0.32968201]
[1742046223098,0.33295044,600.69,598.92,1.18968201]
[1742046223295,0.28041568,600.68,598.92,1.18968201]
[1742046223492,0.33296706,600.66,598.92,1.18968201]
[1742046223895,0.28022675,600.65,598.93,0.30643386]
[1742046224095,0.3329837,600.63,598.94,0.33392326]
[1742046224296,0.28022675,600.62,598.94,0.33392326]
[1742046224494,0.33300033,600.6,598.94,0.33392326]
[1742046224698,0.28022675,600.59,598.95,1.53843534]
[1742046224894,0.33301696,600.57,598.96,0.64034745]
[1742046225198,0.28022675,600.56,598.96,0.33391211]
[1742046225399,0.3330336,600.54,598.96,0.33391211]
[1742046225698,0.28022675,600.53,598.96,0.33391211]
[1742046225898,0.33305024,600.51,598.96,0.33391211]
[1742046226197,0.28022675,600.5,598.96,0.33391211]
[1742046226398,0.33306133,600.49,598.96,0.33391211]
[1742046226599,0.28022675,600.48,598.96,0.33391211]
[1742046226800,0.33307242,600.47,598.97,0.30643559]
[1742046227100,0.28022675,600.46,598.98,0.33390096]
[1742046227301,0.33308352,600.45,598.98,0.33390096]
[1742046227500,0.33308352,600.45,598.99,0.30643559]
[1742046227697,0.28022675,600.44,599.0,0.33388981]
[1742046227896,0.33309461,600.43,599.0,0.33388981]
[1742046228102,0.28022675,600.42,599.01,0.189]
[1742046228302,0.33310571,600.41,599.01,0.52288424]
[1742046228502,0.28022675,600.4,599.02,1.194]
[1742046228803,0.3331168,600.39,599.02,2.529]
[1742046228997,0.28022675,600.38,599.02,2.529]
[1742046229205,0.3331279,600.37,599.02,2.529]
[1742046229397,0.28022675,600.36,599.02,2.529]
[1742046229603,0.61336301,600.35,599.02,2.529]
[1742046229804,0.61336856,600.34,599.02,2.529]
[1742046230004,0.61337411,600.33,599.02,2.529]
[1742046230199,0.61337966,600.32,599.02,2.529]
[1742046230404,0.61338521,600.31,599.03,0.33387309]
[1742046230599,0.28022401,600.3,599.03,0.33387309]
[1742046230998,0.28022401,600.3,599.03,1.18687309]
[1742046231599,0.3331612,600.31,599.03,1.18687309]
[1742046232305,0.3331612,600.31,599.03,2.53487309]
[1742046236606,0.28017329,600.3,599.04,0.30637981]
[1742046236907,0.28017329,600.3,599.05,0.33386194]
[1742046237108,0.3331612,600.31,599.05,0.33386194]
[1742046240008,0.28017917,600.3,599.05,0.33386194]
[1742046240811,0.3331612,600.31,599.05,0.33386194]
[1742046249217,0.32529534,600.31,599.05,0.33386194]
[1742046250313,0.32529534,600.31,599.05,2.13386194]
[1742046254126,0.28057951,600.3,599.05,3.13386194]
[1742046256525,0.28057951,600.3,599.06,0.30641797]
[1742046257523,0.28057951,600.3,599.06,1.26241797]
[1742046257728,0.28057951,600.3,599.07,0.30641797]
[1742046258723,0.28057951,600.3,599.08,1.225]
[1742046260827,0.28057951,600.3,599.09,0.188]
[1742046263932,0.32529534,600.31,599.09,0.188]
[1742046264122,0.28058693,600.3,599.09,0.188]
[1742046267928,0.28058693,600.3,599.1,0.30640204]
[1742046269234,0.28058693,600.3,599.11,1.223]
[1742046269431,0.28058693,600.3,599.12,0.30640204]
[1742046269630,0.28056739,600.29,599.13,0.30639861]
[1742046269830,0.28056739,600.28,599.14,0.30639861]
[1742046270033,0.28056739,600.27,599.11,1.223]
[1742046270235,0.28056739,600.3,599.15,1.301]
[1742046270435,0.28056739,600.29,599.15,1.301]
[1742046270629,0.28056739,600.3,599.15,1.301]
[1742046270835,0.28056739,600.29,599.15,1.301]
[1742046271030,0.28056739,600.28,599.15,1.301]
[1742046271230,0.32529534,600.31,599.15,1.301]
[1742046271231,0.28056739,600.3,599.15,1.301]
[1742046273032,0.28056739,600.3,599.15,2.383]
[1742046274838,0.28056739,600.3,599.15,3.427]
[1742046277035,0.32529534,600.31,599.15,3.427]
[1742046277236,0.28057925,600.3,599.15,3.427]
[1742046277840,0.28057925,600.3,599.16,0.30639981]
[1742046278142,0.28057925,600.3,599.15,3.427]
[1742046278334,0.28057925,600.3,599.16,0.30639236]
[1742046278740,0.32529534,600.31,599.15,3.427]
[1742046278941,0.28055988,600.3,599.16,0.30639101]
[1742046279341,0.28055988,600.3,599.15,3.615]
[1742046280838,0.28057281,600.29,599.15,3.615]
[1742046281144,0.28057281,600.28,599.15,3.615]
[1742046281338,0.28057281,600.3,599.15,3.615]
[1742046281538,0.28057281,600.29,599.15,4.598]
[1742046281738,0.28057281,600.3,599.15,5.494]
[1742046281942,0.28057281,600.29,599.15,5.494]
[1742046282143,0.28057281,600.28,599.15,5.494]
[1742046282339,0.28057281,600.3,599.15,5.494]
[1742046282539,0.28057281,600.29,599.15,5.494]
[1742046282743,0.28057281,600.3,599.15,5.494]
[1742046282942,0.28057281,600.29,599.15,5.494]
[1742046283140,0.28057281,600.3,599.15,5.494]
[1742046283340,0.28057281,600.29,599.15,5.494]
[1742046283540,0.28057281,600.3,599.15,5.494]
[1742046283845,0.61373955,600.3,599.15,5.494]
[1742046284245,0.28057281,600.29,599.15,5.494]
[1742046284448,0.33316674,600.3,599.15,5.494]
[1742046284647,0.28060922,600.29,599.15,5.494]
[1742046292048,0.28061838,600.28,599.15,5.494]
[1742046292253,0.28061838,600.27,599.15,5.494]
[1742046292452,0.33316674,600.3,599.15,5.494]
[1742046292453,0.28061838,600.26,599.15,5.494]
[1742046292653,0.28061838,600.25,599.15,5.494]
[1742046292854,0.28061838,600.24,599.15,5.494]
[1742046293156,0.28061838,600.23,599.15,5.494]
[1742046293354,0.33316674,600.3,599.15,5.494]
[1742046293355,0.28061838,600.29,599.15,5.494]
[1742046293549,0.28061838,600.28,599.15,5.494]
[1742046293948,0.33316674,600.3,599.15,5.494]
[1742046293949,0.28061838,600.27,599.15,5.494]
[1742046294155,0.28061838,600.29,599.15,5.494]
[1742046294452,0.28061838,600.28,599.15,5.494]
[1742046294756,0.28061838,600.27,599.15,5.494]
[1742046294957,0.28061838,600.29,599.15,5.494]
[1742046295157,0.28061838,600.28,599.15,5.494]
[1742046295455,0.28061838,600.27,599.15,5.494]
[1742046295657,0.28061838,600.29,599.15,5.494]
[1742046295955,0.28061838,600.28,599.15,5.494]
[1742046296152,0.28061838,600.29,599.15,5.494]
[1742046296358,0.33316674,600.3,599.15,5.494]
[1742046296359,0.28061838,600.28,599.15,5.494]
[1742046296551,0.28061838,600.29,599.15,5.494]
[1742046300162,0.33317785,600.28,599.15,5.494]
[1742046300356,0.28061838,600.27,599.15,5.494]
[1742046301058,0.28063507,600.26,599.15,5.494]
[1742046301357,0.28063507,600.27,599.15,5.494]
[1742046301555,0.28063507,600.26,599.15,5.494]
[1742046302060,0.28063507,600.25,599.15,5.494]
[1742046302262,0.28063507,600.27,599.15,5.494]
[1742046302961,0.33318895,600.26,599.15,5.494]
[1742046303356,0.28063507,600.25,599.15,5.494]
[1742046303560,0.61382957,600.25,599.15,5.494]
[1742046303761,0.28063507,600.24,599.15,5.494]
[1742046309871,0.3331945,600.25,599.15,5.494]
[1742046316478,0.28062673,600.24,599.15,5.494]
[1742046317680,0.28062673,600.24,599.15,6.601]
[1742046319878,0.28064202,600.23,599.15,6.601]
[1742046320080,0.3332056,600.23,599.15,6.601]
[1742046320275,0.28064202,600.22,599.15,6.601]
[1742046320477,0.3332167,600.21,599.15,6.601]
[1742046320678,0.28064202,600.2,599.15,6.601]
[1742046325283,0.3332167,600.21,599.15,6.601]
[1742046325485,0.28064411,600.2,599.15,6.601]
[1742046330984,0.3332167,600.21,599.15,6.601]
[1742046331182,0.28066854,600.2,599.15,6.601]
[1742046334692,0.3332167,600.21,599.15,6.601]
[1742046336995,0.28064498,600.2,599.15,6.601]
[1742046340702,0.33322781,600.19,599.15,6.601]
[1742046340905,0.28064498,600.18,599.15,6.601]
[1742046341106,0.61387834,600.18,599.15,6.601]
[1742046341306,0.28064498,600.17,599.15,6.601]
[1742046343709,0.61388389,600.17,599.15,6.601]
[1742046344009,0.33325002,600.15,599.15,6.601]
[1742046344206,0.28064498,600.14,599.15,6.601]
[1742046344411,0.33326112,600.13,599.15,6.601]
[1742046344609,0.28064498,600.12,599.15,6.601]
[1742046345610,0.33327223,600.11,599.15,6.601]
[1742046345913,0.28064498,600.1,599.15,6.601]
[1742046346213,0.33328334,600.09,599.15,6.601]
[1742046346410,0.28064498,600.08,599.15,6.601]
[1742046346612,0.33329444,600.07,599.15,6.601]
[1742046346813,0.28064498,600.06,599.15,6.601]
[1742046347009,0.33330555,600.05,599.15,6.601]
[1742046347313,0.28064498,600.04,599.15,6.601]
[1742046347514,0.33331666,600.03,599.15,6.601]
[1742046347714,0.28064498,600.02,599.15,6.601]
[1742046347911,0.33332777,600.01,599.15,6.601]
[1742046348314,0.28064498,600.0,599.15,6.601]
[1742046348615,0.33333888,599.99,599.15,6.601]
[1742046348815,0.28064498,599.98,599.15,6.601]
[1742046349018,0.33335,599.97,599.15,6.601]
[1742046349216,0.28064498,599.96,599.15,6.601]
[1742046349408,0.33336111,599.95,599.15,6.601]
[1742046349613,0.28064498,599.94,599.15,6.601]
[1742046349918,0.33337222,599.93,599.15,6.601]
[1742046350113,0.28064498,599.92,599.15,6.601]
[1742046350315,0.33338334,599.91,599.15,6.601]
[1742046350515,0.28064498,599.9,599.15,6.601]
[1742046350716,0.33339445,599.89,599.15,6.601]
[1742046350916,0.28064498,599.88,599.15,6.601]
[1742046351318,0.33340557,599.87,599.15,6.601]
[1742046351518,0.28064498,599.86,599.15,6.601]
[1742046351818,0.33341668,599.85,599.15,6.601]
[1742046352019,0.28064498,599.84,599.15,6.601]
[1742046352219,0.61406722,599.84,599.15,6.601]
[1742046352417,0.28064498,599.83,599.15,6.601]
[1742046354719,0.33342224,599.84,599.15,6.601]
[1742046366928,0.28069862,599.83,599.15,6.601]
[1742046367129,0.33342224,599.84,599.15,6.601]
[1742046367335,0.28070221,599.83,599.15,6.601]
[1742046367534,0.33342224,599.84,599.15,6.601]
[1742046369727,2.54800655,600.75,599.15,6.601]
[1742046369728,2.54800655,600.5,599.15,6.601]
[1742046369933,0.33306687,600.48,599.15,6.601]
[1742046370135,0.28065556,600.47,599.15,6.601]
[1742046370335,0.33308352,600.45,599.15,6.601]
[1742046370533,0.28065556,600.44,599.15,6.601]
[1742046371233,0.33310016,600.42,599.15,6.601]
[1742046371440,0.28065556,600.41,599.15,6.601]
[1742046371639,0.3331168,600.39,599.15,6.601]
[1742046372036,0.28065454,600.38,599.15,6.601]
[1742046372340,0.33313345,600.36,599.15,6.601]
[1742046372537,0.28065454,600.35,599.15,6.601]
[1742046372838,0.3331501,600.33,599.15,6.601]
[1742046373039,0.28065454,600.32,599.15,6.601]
[1742046373240,0.61381764,600.31,599.15,6.601]
[1742046373438,0.61382318,600.3,599.15,6.601]
[1742046373638,0.61382874,600.29,599.15,6.601]
[1742046373837,0.3331723,600.29,599.15,6.601]
[1742046374034,0.28061773,600.28,599.15,6.601]
[1742046376040,0.28061773,600.28,599.16,0.30641405]
[1742046376634,0.28061773,600.28,599.17,0.30641405]
[1742046376832,0.28061773,600.28,598.92,0.2902455]
[1742046377036,0.28061773,600.28,598.93,0.30640688]
[1742046377336,0.3331723,600.29,598.92,0.2902455]
[1742046377532,0.28057493,600.28,598.93,0.30640624]
[1742046379241,0.28057493,600.28,598.93,0.49440624]
[1742046379435,0.3331723,600.29,598.93,1.075]
[1742046379635,0.28057439,600.28,598.94,0.30640572]
[1742046380033,0.28057439,600.28,598.95,2.736]
[1742046380239,0.28057439,600.28,598.96,0.30640572]
[1742046381238,0.28057439,600.28,598.97,0.33390653]
[1742046381444,0.28057522,600.27,598.98,0.30640656]
[1742046381740,0.28057522,600.26,598.98,0.30640656]
[1742046381937,0.28057522,600.28,598.98,0.30640656]
[1742046382133,0.28057522,600.27,598.98,0.30640656]
[1742046382339,0.28057522,600.28,598.99,0.33389539]
[1742046382535,0.28057522,600.28,599.0,0.30640656]
[1742046382738,0.28057522,600.28,599.01,0.33388424]
[1742046382935,0.28057522,600.28,599.02,0.30640656]
[1742046383141,0.28056765,600.27,599.03,0.64027198]
[1742046383341,0.28056765,600.28,599.04,0.64026641]
[1742046383532,0.28056765,600.27,599.05,0.64026083]
[1742046383734,0.28056765,600.28,599.06,0.64025526]
[1742046384040,0.28056765,600.27,599.07,0.30639889]
[1742046384241,0.3331723,600.29,599.06,0.33385637]
[1742046392544,0.28056087,600.28,599.07,0.30639206]
[1742046392942,0.28056087,600.28,599.08,0.33384522]
[1742046393139,0.28055825,600.27,599.09,0.30638937]
[1742046393345,0.28055825,600.28,599.1,0.33383408]
[1742046393546,0.28055825,600.27,599.1,0.33383408]
[1742046393745,0.28055825,600.28,599.1,0.33383408]
[1742046393945,0.28055825,600.27,599.1,0.33383408]
[1742046394244,0.28055825,600.26,599.1,0.33383408]
[1742046394446,0.28055825,600.28,599.1,0.33383408]
[1742046394746,0.28055825,600.27,599.11,0.30639095]
[1742046394948,0.28055825,600.28,599.11,0.30639095]
[1742046395142,0.28055825,600.28,599.12,0.33382294]
[1742046397249,0.28055825,600.28,599.13,0.942]
[1742046397448,0.28055825,600.28,599.14,0.33381179]
[1742046398044,0.28055825,600.28,599.15,0.3063945]
[1742046399746,0.3331723,600.29,599.15,0.918]
[1742046399949,0.28056462,600.28,599.16,0.30639579]
[1742046401848,0.3331723,600.29,599.15,0.918]
[1742046402052,0.2805658,600.28,599.16,1.34539697]
[1742046402353,0.2805658,600.28,599.16,1.039]
[1742046402553,0.2805658,600.28,599.17,0.30641059]
[1742046402852,0.3331834,600.27,599.16,1.039]
[1742046403053,0.2805658,600.26,599.16,1.039]
[1742046403254,0.3331945,600.25,599.16,1.039]
[1742046403855,0.28061043,600.24,599.16,1.039]
[1742046405453,0.3331945,600.25,599.16,1.039]
[1742046405656,0.28061084,600.24,599.16,1.039]
[1742046408156,0.28061312,600.23,599.16,1.039]
[1742046408357,0.28061312,600.24,599.16,1.039]
[1742046411553,0.28061312,600.24,599.16,1.227]
[1742046413457,0.28061312,600.24,599.16,2.494]
[1742046415465,0.28061804,600.23,599.16,2.494]
[1742046415658,0.28061804,600.24,599.16,2.494]
[1742046415968,0.28061804,600.23,599.16,2.494]
[1742046416159,0.28061804,600.24,599.16,2.494]
[1742046416360,0.28061804,600.23,599.16,2.494]
[1742046416556,0.28061804,600.24,599.16,2.494]
[1742046416758,0.28061804,600.22,599.16,2.494]
[1742046416963,0.28061804,600.21,599.16,2.494]
[1742046417161,0.28061804,600.24,599.16,2.494]
[1742046417364,0.28061804,600.23,599.16,2.494]
[1742046417664,0.28061804,600.22,599.16,2.494]
[1742046417865,0.28061804,600.24,599.16,2.494]
[1742046418166,0.28061804,600.23,599.16,2.494]
[1742046418460,0.28061804,600.22,599.16,2.494]
[1742046418660,0.28061804,600.24,599.16,2.494]
[1742046419661,0.28061804,600.24,599.16,3.643]
[1742046421767,0.28061059,600.23,599.16,3.643]
[1742046421967,0.28061059,600.24,599.16,3.643]
[1742046422165,0.28061059,600.23,599.16,3.643]
[1742046422362,0.28061059,600.24,599.16,3.643]
[1742046422562,0.28061059,600.22,599.16,3.643]
[1742046422765,0.28061059,600.21,599.16,3.643]
[1742046422968,0.28061059,600.24,599.16,3.643]
[1742046424471,0.3331945,600.25,599.16,3.643]
[1742046425264,0.28061447,600.24,599.16,3.643]
[1742046425868,0.28061447,600.24,599.16,4.985]
[1742046427464,0.3331945,600.25,599.16,4.985]
[1742046427670,0.28061502,600.24,599.16,4.985]
[1742046428767,0.28061502,600.24,599.16,5.989]
[1742046429468,0.28060847,600.23,599.16,5.989]
[1742046429668,0.3331945,600.25,599.16,5.989]
[1742046429669,0.28060847,600.24,599.16,5.989]
[1742046433173,0.3331945,600.25,599.16,5.989]
[1742046433878,0.28059611,600.24,599.16,5.989]
[1742046435375,0.28059402,600.23,599.16,5.989]
[1742046435569,0.3331945,600.25,599.16,5.989]
[1742046435570,0.28059402,600.22,599.16,5.989]
[1742046435773,0.28059402,600.21,599.16,5.989]
[1742046435971,0.28059402,600.24,599.16,5.989]
[1742046436172,0.28059402,600.23,599.16,5.989]
[1742046436374,0.28059402,600.22,599.16,5.989]
[1742046436574,0.28059402,600.21,599.16,5.989]
[1742046436772,0.28059402,600.24,599.16,5.989]
[1742046437077,0.28059159,600.23,599.16,5.989]
[1742046437377,0.28059159,600.22,599.16,5.989]
[1742046437569,0.28059159,600.21,599.16,5.989]
[1742046437774,0.28059159,600.2,599.16,5.989]
[1742046437980,0.28059159,600.24,599.16,5.989]
[1742046440979,0.3331945,600.25,599.16,5.989]
[1742046441681,0.28061167,600.24,599.16,5.989]
[1742046441877,0.3331945,600.25,599.16,5.989]
[1742046444282,0.3331945,600.25,599.16,7.296]
[1742046447586,0.28062482,600.24,599.16,7.296]
[1742046448389,0.28062422,600.23,599.16,7.296]
[1742046448683,0.28062422,600.22,599.16,7.296]
[1742046448883,0.28062422,600.24,599.16,7.296]
[1742046449087,0.28062422,600.21,599.16,7.296]
[1742046449288,0.28062422,600.2,599.16,7.296]
[1742046449490,0.28062422,600.19,599.16,7.296]
[1742046449689,0.28062422,600.24,599.16,7.296]
[1742046449891,0.28062422,600.23,599.16,7.296]
[1742046450189,0.28062422,600.22,599.16,7.296]
[1742046450391,0.28062422,600.24,599.16,7.296]
[1742046450692,0.28062422,600.23,599.16,7.296]
[1742046450885,0.28062422,600.24,599.16,7.296]
[1742046451090,0.28062422,600.23,599.16,7.296]
[1742046451390,0.28062422,600.24,599.16,7.296]
[1742046451690,0.28062422,600.23,599.16,7.296]
[1742046451886,0.3331945,600.25,599.16,7.296]
[1742046452091,0.28063858,600.24,599.16,7.296]
[1742046453193,0.3332056,600.23,599.16,7.296]
[1742046453393,0.28063858,600.22,599.16,7.296]
[1742046453596,0.3332167,600.21,599.16,7.296]
[1742046453788,0.28063858,600.2,599.16,7.296]
[1742046453991,0.3332167,600.21,599.16,7.296]
[1742046454197,0.28063598,600.2,599.16,7.296]
[1742046454693,0.33322781,600.19,599.16,7.296]
[1742046454892,0.28063598,600.18,599.16,7.296]
[1742046455692,0.33323891,600.17,599.16,7.296]
[1742046455892,0.28063598,600.16,599.16,7.296]
[1742046456089,0.33325002,600.15,599.16,7.296]
[1742046456293,0.28063598,600.14,599.16,7.296]
[1742046456490,0.33326112,600.13,599.16,7.296]
[1742046456695,0.28063598,600.12,599.16,7.296]
[1742046456895,0.61390265,600.12,599.16,7.296]
[1742046457095,0.28063598,600.11,599.16,7.296]
[1742046457696,0.28066993,600.1,599.16,7.296]
[1742046457890,0.28066993,600.09,599.16,7.296]
[1742046458095,0.28066993,600.08,599.16,7.296]
[1742046458395,0.28066993,600.07,599.16,7.296]
[1742046458597,0.28066993,600.06,599.16,7.296]
[1742046458796,0.28066993,600.11,599.16,7.296]
[1742046458996,0.28066993,600.1,599.16,7.296]
[1742046459298,0.33326667,600.12,599.16,7.296]
[1742046459494,0.2807235,600.11,599.16,7.296]
[1742046460599,0.33327778,600.1,599.16,7.296]
[1742046460801,0.2807235,600.09,599.16,7.296]
[1742046461098,0.33328889,600.08,599.16,7.296]
[1742046461599,0.28072544,600.07,599.16,7.296]
[1742046462199,0.3333,600.06,599.16,7.296]
[1742046462500,0.28072544,600.05,599.16,7.296]
[1742046462901,0.33331111,600.04,599.16,7.296]
[1742046463101,0.28072544,600.03,599.16,7.296]
[1742046465003,0.33332222,600.02,599.16,7.296]
[1742046465198,0.28072544,600.01,599.16,7.296]
[1742046465400,0.33333333,600.0,599.16,7.296]
[1742046465596,0.28072544,599.99,599.16,7.296]
[1742046465800,0.33334444,599.98,599.16,7.296]
[1742046465999,0.28072544,599.97,599.16,7.296]
[1742046466204,0.61407544,599.97,599.16,7.296]
[1742046466404,0.28072544,599.96,599.16,7.296]
[1742046466804,0.280747,599.95,599.16,7.296]
[1742046467005,0.280747,599.94,599.16,7.296]
[1742046467306,0.280747,599.93,599.16,7.296]
[1742046467500,0.280747,599.96,599.16,7.296]
[1742046467700,0.280747,599.95,599.16,7.296]
[1742046468006,0.280747,599.96,599.16,7.296]
[1742046468206,0.280747,599.95,599.16,7.296]
[1742046468401,0.280747,599.96,599.16,7.296]
[1742046468606,0.33335,599.97,599.16,7.296]
[1742046471010,0.28070216,599.96,599.16,7.296]
[1742046472616,0.28069777,599.95,599.16,7.296]